[Event "*** SCC Grand Prix: Titled Tuesday Blitz"]
[Site "Chess.com"]
[Date "2020.10.06"]
[Round "7"]
[White "Loy_Konstantin"]
[Black "LubovMarkelova"]
[Result "1-0"]
[WhiteElo "2361"]
[BlackElo "2221"]
[TimeControl "180+1"]
[EndTime "11:17:20 PDT"]
[Termination "Loy_Konstantin won by resignation"]

1. e4 {[%clk 0:02:48.4]} 1... e6 {[%clk 0:02:59.8]} 2. d3 {[%clk 0:02:48]} 2...
d5 {[%clk 0:02:59.6]} 3. Nd2 {[%clk 0:02:48.3]} 3... c5 {[%clk 0:03:00]} 4. Ngf3
{[%clk 0:02:47.4]} 4... Nc6 {[%clk 0:02:59.1]} 5. g3 {[%clk 0:02:47]} 5... Bd6
{[%clk 0:02:59.7]} 6. Bg2 {[%clk 0:02:47.1]} 6... Nge7 {[%clk 0:03:00.1]} 7. O-O
{[%clk 0:02:47]} 7... O-O {[%clk 0:02:57.9]} 8. Nh4 {[%clk 0:02:39.6]} 8... d4
{[%clk 0:02:53.5]} 9. f4 {[%clk 0:02:37.3]} 9... e5 {[%clk 0:02:53.9]} 10. a4
{[%clk 0:02:26.1]} 10... f6 {[%clk 0:02:52.2]} 11. Nc4 {[%clk 0:02:09.6]} 11...
Be6 {[%clk 0:02:51.1]} 12. b3 {[%clk 0:02:09.5]} 12... b6 {[%clk 0:02:48.7]} 13.
f5 {[%clk 0:02:00.5]} 13... Bf7 {[%clk 0:02:47.2]} 14. g4 {[%clk 0:01:59]} 14...
a6 {[%clk 0:02:45.6]} 15. g5 {[%clk 0:01:49]} 15... Qd7 {[%clk 0:02:10.5]} 16.
Nxb6 {[%clk 0:01:28.2]} 16... Qc7 {[%clk 0:02:06.8]} 17. Nxa8 {[%clk 0:01:28.4]}
17... Rxa8 {[%clk 0:02:07.5]} 18. gxf6 {[%clk 0:01:28.9]} 18... gxf6 {[%clk
0:02:06.5]} 19. Kh1 {[%clk 0:01:16.3]} 19... Kf8 {[%clk 0:02:05.9]} 20. Bf3
{[%clk 0:01:13.8]} 20... Ke8 {[%clk 0:02:05.8]} 21. Bh5 {[%clk 0:01:13.7]} 21...
Nd8 {[%clk 0:01:58.6]} 22. Rg1 {[%clk 0:01:06.8]} 22... Kd7 {[%clk 0:01:58.4]}
23. Bxf7 {[%clk 0:01:02.4]} 23... Nxf7 {[%clk 0:01:58.4]} 24. Qh5 {[%clk
0:01:02.4]} 24... Nd8 {[%clk 0:01:42.1]} 25. Qxh7 {[%clk 0:00:59.8]} 25... Nc6
{[%clk 0:01:41.3]} 26. Bd2 {[%clk 0:00:56.9]} 26... Nb4 {[%clk 0:01:39.3]} 27.
Bxb4 {[%clk 0:00:50.1]} 27... cxb4 {[%clk 0:01:39.1]} 28. Rg2 {[%clk 0:00:50]}
28... Qc3 {[%clk 0:01:33.9]} 29. Rag1 {[%clk 0:00:48.3]} 29... Rc8 {[%clk
0:01:29.2]} 30. Qf7 {[%clk 0:00:46.7]} 1-0

[Event "*** SCC Grand Prix: Titled Tuesday Blitz"]
[Site "Chess.com"]
[Date "2020.10.06"]
[Round "7"]
[White "emiliocordova"]
[Black "MITerryble"]
[Result "1-0"]
[WhiteElo "2798"]
[BlackElo "2941"]
[TimeControl "180+1"]
[EndTime "11:17:23 PDT"]
[Termination "emiliocordova won by resignation"]

1. d4 {[%clk 0:03:00.9]} 1... d5 {[%clk 0:03:00.1]} 2. Nf3 {[%clk 0:03:01]} 2...
Nf6 {[%clk 0:03:00.1]} 3. c4 {[%clk 0:03:00.9]} 3... dxc4 {[%clk 0:03:01]} 4. e3
{[%clk 0:03:01.1]} 4... e6 {[%clk 0:03:01.4]} 5. Bxc4 {[%clk 0:03:01.3]} 5... a6
{[%clk 0:03:02.1]} 6. a4 {[%clk 0:02:59.8]} 6... c5 {[%clk 0:03:02]} 7. O-O
{[%clk 0:03:00]} 7... Nc6 {[%clk 0:03:01.4]} 8. Qe2 {[%clk 0:03:00.2]} 8... Be7
{[%clk 0:03:00.9]} 9. Rd1 {[%clk 0:03:00.3]} 9... O-O {[%clk 0:03:01.1]} 10. Nc3
{[%clk 0:03:00.1]} 10... Qc7 {[%clk 0:03:00.7]} 11. h3 {[%clk 0:02:54.7]} 11...
Rd8 {[%clk 0:02:59.4]} 12. d5 {[%clk 0:02:45.1]} 12... exd5 {[%clk 0:02:59.3]}
13. Nxd5 {[%clk 0:02:46]} 13... Nxd5 {[%clk 0:02:58.4]} 14. Bxd5 {[%clk
0:02:46.9]} 14... Nb4 {[%clk 0:02:50.3]} 15. Bc4 {[%clk 0:02:46.6]} 15... Rxd1+
{[%clk 0:02:31.3]} 16. Qxd1 {[%clk 0:02:47.5]} 16... Bf5 {[%clk 0:02:31.1]} 17.
Bd2 {[%clk 0:02:45.8]} 17... Rd8 {[%clk 0:02:12.9]} 18. Qb3 {[%clk 0:02:45.3]}
18... Bg6 {[%clk 0:02:12.2]} 19. Bxb4 {[%clk 0:02:44.9]} 19... cxb4 {[%clk
0:02:12.5]} 20. Bd5 {[%clk 0:02:32.7]} 20... a5 {[%clk 0:01:07.2]} 21. e4 {[%clk
0:02:32.4]} 21... Bc5 {[%clk 0:01:01.3]} 22. Qc4 {[%clk 0:02:21]} 22... Qb6
{[%clk 0:00:56.3]} 23. Rf1 {[%clk 0:02:15.2]} 23... Rc8 {[%clk 0:00:49.9]} 24.
Kh1 {[%clk 0:02:06.7]} 24... Rf8 {[%clk 0:00:49]} 25. Ne5 {[%clk 0:02:04.3]}
25... Qd6 {[%clk 0:00:27]} 26. f4 {[%clk 0:02:01.4]} 26... b6 {[%clk 0:00:24.1]}
27. b3 {[%clk 0:01:55.1]} 27... Kh8 {[%clk 0:00:19.6]} 28. Bxf7 {[%clk
0:01:52.3]} 1-0

[Event "*** SCC Grand Prix: Titled Tuesday Blitz"]
[Site "Chess.com"]
[Date "2020.10.06"]
[Round "7"]
[White "besarquis"]
[Black "kakakz"]
[Result "0-1"]
[WhiteElo "2200"]
[BlackElo "2395"]
[TimeControl "180+1"]
[EndTime "11:17:23 PDT"]
[Termination "kakakz won by resignation"]

1. e4 {[%clk 0:02:58.9]} 1... e6 {[%clk 0:03:00.1]} 2. d4 {[%clk 0:02:57.9]}
2... d5 {[%clk 0:03:01]} 3. Nd2 {[%clk 0:02:58.4]} 3... c5 {[%clk 0:03:00.9]} 4.
exd5 {[%clk 0:02:57.8]} 4... Qxd5 {[%clk 0:03:01.8]} 5. Ngf3 {[%clk 0:02:57.9]}
5... cxd4 {[%clk 0:03:01.5]} 6. Bc4 {[%clk 0:02:58.4]} 6... Qd6 {[%clk
0:03:01.9]} 7. O-O {[%clk 0:02:55.1]} 7... Nf6 {[%clk 0:03:02]} 8. Nb3 {[%clk
0:02:55.2]} 8... Nc6 {[%clk 0:03:01.5]} 9. Nbxd4 {[%clk 0:02:55]} 9... Nxd4
{[%clk 0:03:01.5]} 10. Nxd4 {[%clk 0:02:55.3]} 10... a6 {[%clk 0:03:02.4]} 11.
c3 {[%clk 0:02:52.1]} 11... Qc7 {[%clk 0:02:57.5]} 12. Bb3 {[%clk 0:02:52]}
12... Bd6 {[%clk 0:02:55.8]} 13. h3 {[%clk 0:02:36.2]} 13... O-O {[%clk
0:02:50.5]} 14. Re1 {[%clk 0:02:35.4]} 14... e5 {[%clk 0:02:27.8]} 15. Nf3
{[%clk 0:02:30.4]} 15... Bf5 {[%clk 0:02:14.7]} 16. Bg5 {[%clk 0:02:27.9]} 16...
Ne4 {[%clk 0:02:05.9]} 17. Be3 {[%clk 0:02:24.4]} 17... Rad8 {[%clk 0:01:58.4]}
18. Qe2 {[%clk 0:02:24.2]} 18... Nc5 {[%clk 0:01:48.8]} 19. Bc2 {[%clk
0:02:00.4]} 19... Bxc2 {[%clk 0:01:44.3]} 20. Qxc2 {[%clk 0:01:59.9]} 20... e4
{[%clk 0:01:45.2]} 21. Nd2 {[%clk 0:01:43.8]} 21... Nd3 {[%clk 0:01:34.8]} 22.
Rf1 {[%clk 0:01:41.5]} 22... f5 {[%clk 0:01:34.3]} 23. Bd4 {[%clk 0:01:37.1]}
23... Kh8 {[%clk 0:01:12]} 24. a4 {[%clk 0:01:33.7]} 24... Bh2+ {[%clk
0:01:11.3]} 25. Kh1 {[%clk 0:01:33.1]} 25... Rxd4 {[%clk 0:01:12.2]} 26. Qb3
{[%clk 0:01:07.6]} 26... Rd7 {[%clk 0:01:04.5]} 0-1

[Event "*** SCC Grand Prix: Titled Tuesday Blitz"]
[Site "Chess.com"]
[Date "2020.10.06"]
[Round "7"]
[White "Deepweb2020"]
[Black "nelsoncopa"]
[Result "1-0"]
[WhiteElo "2226"]
[BlackElo "1663"]
[TimeControl "180+1"]
[EndTime "11:17:34 PDT"]
[Termination "Deepweb2020 won on time"]

1. d4 {[%clk 0:02:29.6]} 1... d6 {[%clk 0:00:38.2]} 2. c4 {[%clk 0:02:30.5]}
2... Nf6 {[%clk 0:00:38]} 3. Nf3 {[%clk 0:02:25.9]} 3... Nbd7 {[%clk 0:00:34.4]}
4. g3 {[%clk 0:02:25.2]} 4... e5 {[%clk 0:00:34.7]} 5. Bg2 {[%clk 0:02:25.5]}
5... Be7 {[%clk 0:00:34.4]} 6. O-O {[%clk 0:02:22.2]} 6... O-O {[%clk
0:00:34.3]} 7. b3 {[%clk 0:02:22.2]} 7... c6 {[%clk 0:00:34.1]} 8. Bb2 {[%clk
0:02:22.5]} 8... Qc7 {[%clk 0:00:34.3]} 9. Nc3 {[%clk 0:02:23]} 9... Re8 {[%clk
0:00:34.6]} 10. e4 {[%clk 0:02:22.6]} 10... Bf8 {[%clk 0:00:34.1]} 11. d5 {[%clk
0:02:23.1]} 11... a5 {[%clk 0:00:32.8]} 12. Rc1 {[%clk 0:02:22.3]} 12... cxd5
{[%clk 0:00:33]} 13. cxd5 {[%clk 0:02:20.6]} 13... Qb8 {[%clk 0:00:29.9]} 14.
Nb5 {[%clk 0:02:20]} 14... Rd8 {[%clk 0:00:20.2]} 15. Ba3 {[%clk 0:02:11.9]}
15... b6 {[%clk 0:00:20.3]} 16. Bxd6 {[%clk 0:02:07.3]} 16... Bxd6 {[%clk
0:00:18.8]} 17. Nxd6 {[%clk 0:02:08.2]} 17... Qxd6 {[%clk 0:00:18.5]} 18. Nh4
{[%clk 0:02:03.9]} 18... g6 {[%clk 0:00:17.3]} 19. f4 {[%clk 0:02:03]} 19...
exf4 {[%clk 0:00:16.6]} 20. gxf4 {[%clk 0:02:03.9]} 20... Bb7 {[%clk 0:00:14.8]}
21. e5 {[%clk 0:02:03.3]} 21... Nxe5 {[%clk 0:00:11.2]} 22. fxe5 {[%clk
0:02:03]} 22... Qxe5 {[%clk 0:00:11.7]} 23. Qf3 {[%clk 0:02:00.8]} 23... Nh5
{[%clk 0:00:10.8]} 24. Qxf7+ {[%clk 0:02:00.3]} 24... Kh8 {[%clk 0:00:10.9]} 25.
Qxb7 {[%clk 0:01:57.8]} 25... Rf8 {[%clk 0:00:08.6]} 26. Nf3 {[%clk 0:01:56.5]}
26... Qe3+ {[%clk 0:00:07.1]} 27. Kh1 {[%clk 0:01:56.9]} 27... Nf4 {[%clk
0:00:07.5]} 28. Rc7 {[%clk 0:01:48.8]} 1-0

[Event "*** SCC Grand Prix: Titled Tuesday Blitz"]
[Site "Chess.com"]
[Date "2020.10.06"]
[Round "7"]
[White "Denis_Makhnyov"]
[Black "AniJak"]
[Result "1-0"]
[WhiteElo "2869"]
[BlackElo "2370"]
[TimeControl "180+1"]
[EndTime "11:17:35 PDT"]
[Termination "Denis_Makhnyov won by resignation"]

1. e4 {[%clk 0:02:55.2]} 1... c6 {[%clk 0:02:59.6]} 2. d4 {[%clk 0:02:51.6]}
2... d5 {[%clk 0:02:59.1]} 3. exd5 {[%clk 0:02:47.7]} 3... cxd5 {[%clk 0:02:59]}
4. Bd3 {[%clk 0:02:48.1]} 4... Nc6 {[%clk 0:02:59.3]} 5. c3 {[%clk 0:02:48.3]}
5... Nf6 {[%clk 0:02:58.2]} 6. Bf4 {[%clk 0:02:47.6]} 6... Bg4 {[%clk
0:02:55.9]} 7. Qb3 {[%clk 0:02:47]} 7... Qc8 {[%clk 0:02:50.1]} 8. Nd2 {[%clk
0:02:45.6]} 8... e6 {[%clk 0:02:50]} 9. Ngf3 {[%clk 0:02:43.4]} 9... Be7 {[%clk
0:02:50.1]} 10. O-O {[%clk 0:02:31.7]} 10... O-O {[%clk 0:02:49.7]} 11. Qc2
{[%clk 0:02:31.4]} 11... Bh5 {[%clk 0:02:44.9]} 12. Ne5 {[%clk 0:02:30.5]} 12...
Bg6 {[%clk 0:02:41.3]} 13. Nxg6 {[%clk 0:02:29.2]} 13... hxg6 {[%clk 0:02:42]}
14. Nf3 {[%clk 0:02:21.9]} 14... Nh5 {[%clk 0:02:38.3]} 15. Be3 {[%clk
0:02:16.5]} 15... f5 {[%clk 0:02:26.8]} 16. Qe2 {[%clk 0:02:10.8]} 16... Qc7
{[%clk 0:02:10.6]} 17. Bd2 {[%clk 0:01:57.7]} 17... Nd8 {[%clk 0:01:59.7]} 18.
Ne5 {[%clk 0:01:55.3]} 18... Rf6 {[%clk 0:01:37.8]} 19. Bg5 {[%clk 0:01:41.6]}
19... Nf7 {[%clk 0:01:32.4]} 20. Bxf6 {[%clk 0:01:39.3]} 20... Bxf6 {[%clk
0:01:27.3]} 21. Nxg6 {[%clk 0:01:37.5]} 21... Nf4 {[%clk 0:01:09.7]} 22. Nxf4
{[%clk 0:01:36.9]} 22... Qxf4 {[%clk 0:01:09.6]} 23. Qxe6 {[%clk 0:01:37.5]}
23... Rf8 {[%clk 0:00:58.5]} 24. Qxf5 {[%clk 0:01:34.6]} 24... Qh6 {[%clk
0:00:55.7]} 25. Qxd5 {[%clk 0:01:27.4]} 25... Bd8 {[%clk 0:00:51.2]} 26. Rae1
{[%clk 0:01:23.2]} 26... Qf6 {[%clk 0:00:42]} 27. Re6 {[%clk 0:01:15.6]} 27...
Qh4 {[%clk 0:00:40.4]} 28. g3 {[%clk 0:01:11.2]} 28... Qh5 {[%clk 0:00:39.2]}
1-0

[Event "*** SCC Grand Prix: Titled Tuesday Blitz"]
[Site "Chess.com"]
[Date "2020.10.06"]
[Round "7"]
[White "DeGrootteZ"]
[Black "Rakesh"]
[Result "0-1"]
[WhiteElo "2629"]
[BlackElo "2509"]
[TimeControl "180+1"]
[EndTime "11:17:38 PDT"]
[Termination "Rakesh won by checkmate"]

1. d4 {[%clk 0:03:00.9]} 1... Nf6 {[%clk 0:02:56.9]} 2. c4 {[%clk 0:03:01.4]}
2... e5 {[%clk 0:02:54.2]} 3. dxe5 {[%clk 0:03:00.7]} 3... Ng4 {[%clk
0:02:53.1]} 4. Nf3 {[%clk 0:03:00.8]} 4... Bc5 {[%clk 0:02:52.2]} 5. e3 {[%clk
0:03:00.6]} 5... Nc6 {[%clk 0:02:50.8]} 6. a3 {[%clk 0:02:59.5]} 6... a5 {[%clk
0:02:50.1]} 7. Nc3 {[%clk 0:02:59.4]} 7... O-O {[%clk 0:02:48.7]} 8. b3 {[%clk
0:02:58.3]} 8... Re8 {[%clk 0:02:48.8]} 9. Bb2 {[%clk 0:02:57.5]} 9... Ngxe5
{[%clk 0:02:49.4]} 10. Nxe5 {[%clk 0:02:56.8]} 10... Nxe5 {[%clk 0:02:50.3]} 11.
Be2 {[%clk 0:02:57.3]} 11... Ra6 {[%clk 0:02:40.7]} 12. Ne4 {[%clk 0:02:57.3]}
12... Ba7 {[%clk 0:02:39.5]} 13. c5 {[%clk 0:02:55.1]} 13... Rh6 {[%clk
0:02:35.9]} 14. Rc1 {[%clk 0:02:48.4]} 14... Qh4 {[%clk 0:02:18.6]} 15. Ng3
{[%clk 0:02:28.9]} 15... d6 {[%clk 0:02:07.6]} 16. b4 {[%clk 0:02:22.9]} 16...
axb4 {[%clk 0:02:04.9]} 17. axb4 {[%clk 0:02:23.8]} 17... Qxb4+ {[%clk
0:02:03.7]} 18. Qd2 {[%clk 0:02:21.2]} 18... Bxc5 {[%clk 0:01:58.5]} 19. Bc3
{[%clk 0:02:20.3]} 19... Qh4 {[%clk 0:01:52.5]} 20. h3 {[%clk 0:02:14.3]} 20...
b6 {[%clk 0:01:47.5]} 21. O-O {[%clk 0:02:03.6]} 21... Bxh3 {[%clk 0:01:34.5]}
22. gxh3 {[%clk 0:02:04.5]} 22... Qxh3 {[%clk 0:01:35.4]} 23. Rfd1 {[%clk
0:01:59.1]} 23... Qh2+ {[%clk 0:01:28.7]} 24. Kf1 {[%clk 0:01:56.9]} 24... Rf6
{[%clk 0:01:27]} 25. Bb5 {[%clk 0:01:41.5]} 25... Qxg3 {[%clk 0:00:57.4]} 26.
Bd4 {[%clk 0:01:31.3]} 26... Bxd4 {[%clk 0:00:47.6]} 27. exd4 {[%clk 0:01:26.9]}
27... Qh3+ {[%clk 0:00:43.3]} 28. Ke2 {[%clk 0:01:24.6]} 28... Ng4+ {[%clk
0:00:35.2]} 29. Bxe8 {[%clk 0:01:18]} 29... Rxf2+ {[%clk 0:00:34.1]} 30. Ke1
{[%clk 0:01:18.9]} 30... Qf1# {[%clk 0:00:34]} 0-1

[Event "*** SCC Grand Prix: Titled Tuesday Blitz"]
[Site "Chess.com"]
[Date "2020.10.06"]
[Round "7"]
[White "WildTricks"]
[Black "Sueetin"]
[Result "0-1"]
[WhiteElo "2430"]
[BlackElo "2309"]
[TimeControl "180+1"]
[EndTime "11:17:42 PDT"]
[Termination "Sueetin won by resignation"]

1. e4 {[%clk 0:03:00.9]} 1... e6 {[%clk 0:03:00.1]} 2. d4 {[%clk 0:03:00.1]}
2... d5 {[%clk 0:03:00.3]} 3. Nd2 {[%clk 0:03:00.7]} 3... c5 {[%clk 0:02:59.8]}
4. exd5 {[%clk 0:02:59.6]} 4... Qxd5 {[%clk 0:03:00.7]} 5. Ngf3 {[%clk
0:02:59.2]} 5... cxd4 {[%clk 0:03:00.6]} 6. Bc4 {[%clk 0:02:59.8]} 6... Qd7
{[%clk 0:03:01]} 7. O-O {[%clk 0:02:59.9]} 7... Nc6 {[%clk 0:03:01.2]} 8. Nb3
{[%clk 0:03:00.2]} 8... Nf6 {[%clk 0:03:01.3]} 9. Nbxd4 {[%clk 0:03:00.6]} 9...
Nxd4 {[%clk 0:02:59.3]} 10. Qxd4 {[%clk 0:03:01.5]} 10... Qxd4 {[%clk 0:02:57]}
11. Nxd4 {[%clk 0:03:02.4]} 11... a6 {[%clk 0:02:57]} 12. Be2 {[%clk 0:03:02.6]}
12... Bc5 {[%clk 0:02:53.2]} 13. Nb3 {[%clk 0:03:01.4]} 13... Ba7 {[%clk
0:02:52.1]} 14. a4 {[%clk 0:02:59]} 14... Bd7 {[%clk 0:02:38]} 15. Na5 {[%clk
0:02:46.3]} 15... O-O-O {[%clk 0:02:30.3]} 16. Bf4 {[%clk 0:02:36.2]} 16... Nd5
{[%clk 0:02:27.4]} 17. Bg3 {[%clk 0:02:35.2]} 17... Bb6 {[%clk 0:02:01.7]} 18.
Nc4 {[%clk 0:02:29.5]} 18... Bc7 {[%clk 0:02:01.4]} 19. Bf3 {[%clk 0:02:18.4]}
19... Bc6 {[%clk 0:01:56.3]} 20. Bxc7 {[%clk 0:02:10.8]} 20... Kxc7 {[%clk
0:01:56.4]} 21. Ne5 {[%clk 0:02:10.5]} 21... Rhf8 {[%clk 0:01:35.5]} 22. Nxc6
{[%clk 0:02:01.8]} 22... bxc6 {[%clk 0:01:34.1]} 23. a5 {[%clk 0:01:57.7]} 23...
Rb8 {[%clk 0:01:31.6]} 24. b3 {[%clk 0:01:57.2]} 24... Nc3 {[%clk 0:01:28.8]}
25. Rfe1 {[%clk 0:01:52.8]} 25... Rfd8 {[%clk 0:01:25.6]} 26. Re3 {[%clk
0:01:49.5]} 26... Nd5 {[%clk 0:01:24.9]} 27. Re4 {[%clk 0:01:41.7]} 27... Rb4
{[%clk 0:01:12.5]} 28. Rxb4 {[%clk 0:01:23.9]} 28... Nxb4 {[%clk 0:01:13.4]} 29.
Rc1 {[%clk 0:01:15.1]} 29... Rd2 {[%clk 0:01:10.7]} 30. Be4 {[%clk 0:00:58.1]}
30... f5 {[%clk 0:01:09.2]} 31. c3 {[%clk 0:00:53]} 31... Na2 {[%clk 0:01:06.9]}
0-1

[Event "*** SCC Grand Prix: Titled Tuesday Blitz"]
[Site "Chess.com"]
[Date "2020.10.06"]
[Round "7"]
[White "jefferyx"]
[Black "LiemLe"]
[Result "1/2-1/2"]
[WhiteElo "2917"]
[BlackElo "2996"]
[TimeControl "180+1"]
[EndTime "11:17:43 PDT"]
[Termination "Game drawn by agreement"]

1. d4 {[%clk 0:03:00.9]} 1... Nf6 {[%clk 0:03:00.4]} 2. c4 {[%clk 0:03:01.2]}
2... e6 {[%clk 0:03:01.1]} 3. Nc3 {[%clk 0:03:01.9]} 3... Bb4 {[%clk 0:03:00.7]}
4. Qc2 {[%clk 0:03:02.6]} 4... d5 {[%clk 0:03:00.1]} 5. a3 {[%clk 0:03:03.1]}
5... Bxc3+ {[%clk 0:02:57.4]} 6. Qxc3 {[%clk 0:03:04]} 6... O-O {[%clk
0:02:56.7]} 7. Nf3 {[%clk 0:03:04.6]} 7... dxc4 {[%clk 0:02:48.6]} 8. Qxc4
{[%clk 0:03:05.5]} 8... b6 {[%clk 0:02:49.1]} 9. Bg5 {[%clk 0:03:05.6]} 9... Ba6
{[%clk 0:02:43.5]} 10. Qa4 {[%clk 0:03:05.6]} 10... Qd7 {[%clk 0:02:42.7]} 11.
Qxd7 {[%clk 0:03:04.6]} 11... Nbxd7 {[%clk 0:02:41.9]} 12. Bxf6 {[%clk 0:03:05]}
12... Nxf6 {[%clk 0:02:38.1]} 13. Rc1 {[%clk 0:03:04.2]} 13... Rac8 {[%clk
0:02:37]} 14. e3 {[%clk 0:02:54.5]} 14... Bb7 {[%clk 0:02:34.2]} 15. Bb5 {[%clk
0:02:51.8]} 15... c6 {[%clk 0:02:10.9]} 16. Bd3 {[%clk 0:02:51.7]} 16... Rc7
{[%clk 0:02:10]} 17. Ke2 {[%clk 0:02:51.7]} 17... Rfc8 {[%clk 0:02:10.2]} 18.
Rc2 {[%clk 0:02:52.1]} 18... c5 {[%clk 0:01:44.7]} 19. Rhc1 {[%clk 0:02:52.1]}
19... Kf8 {[%clk 0:01:20.4]} 20. b4 {[%clk 0:02:52]} 20... Nd7 {[%clk
0:01:11.9]} 21. Bb5 {[%clk 0:02:43]} 21... Bc6 {[%clk 0:01:11.6]} 22. Ba6 {[%clk
0:01:37.9]} 22... Rb8 {[%clk 0:01:05]} 23. dxc5 {[%clk 0:01:38.1]} 23... bxc5
{[%clk 0:01:05.9]} 24. bxc5 {[%clk 0:01:38.9]} 24... Rb3 {[%clk 0:01:00.4]} 25.
Nd4 {[%clk 0:01:34.8]} 25... Rxa3 {[%clk 0:01:00.6]} 26. Bb5 {[%clk 0:01:05.3]}
26... Be4 {[%clk 0:01:00.3]} 27. c6 {[%clk 0:00:54]} 1/2-1/2

[Event "*** SCC Grand Prix: Titled Tuesday Blitz"]
[Site "Chess.com"]
[Date "2020.10.06"]
[Round "7"]
[White "zurzan"]
[Black "GMaka"]
[Result "0-1"]
[WhiteElo "1944"]
[BlackElo "2377"]
[TimeControl "180+1"]
[EndTime "11:17:55 PDT"]
[Termination "GMaka won by resignation"]

1. f4 {[%clk 0:03:00.9]} 1... g6 {[%clk 0:02:58.2]} 2. Nf3 {[%clk 0:03:00.9]}
2... Bg7 {[%clk 0:02:59.1]} 3. g3 {[%clk 0:03:01.7]} 3... d5 {[%clk 0:03:00]} 4.
Bg2 {[%clk 0:03:02.3]} 4... Nh6 {[%clk 0:02:59.8]} 5. O-O {[%clk 0:03:02.7]}
5... O-O {[%clk 0:03:00.3]} 6. d3 {[%clk 0:03:02.9]} 6... c5 {[%clk 0:03:00.9]}
7. c3 {[%clk 0:03:02.3]} 7... Nc6 {[%clk 0:02:59.2]} 8. Na3 {[%clk 0:03:00.5]}
8... d4 {[%clk 0:02:55]} 9. e4 {[%clk 0:02:57.6]} 9... dxe3 {[%clk 0:02:54.8]}
10. Bxe3 {[%clk 0:02:57.3]} 10... Ng4 {[%clk 0:02:53.7]} 11. Bxc5 {[%clk
0:02:54.9]} 11... b6 {[%clk 0:02:49.2]} 12. Bf2 {[%clk 0:02:51.1]} 12... Nxf2
{[%clk 0:02:49.1]} 13. Rxf2 {[%clk 0:02:50.9]} 13... Bb7 {[%clk 0:02:45.6]} 14.
d4 {[%clk 0:02:50.1]} 14... e6 {[%clk 0:02:44]} 15. Ne5 {[%clk 0:02:47.7]} 15...
Nxe5 {[%clk 0:02:36.3]} 16. Bxb7 {[%clk 0:02:43.9]} 16... Rb8 {[%clk 0:02:36.7]}
17. Bg2 {[%clk 0:02:39.2]} 17... Nd7 {[%clk 0:02:36.7]} 18. Nc4 {[%clk
0:02:33.7]} 18... b5 {[%clk 0:02:34.2]} 19. Ne5 {[%clk 0:02:32.6]} 19... Nxe5
{[%clk 0:02:33.9]} 20. fxe5 {[%clk 0:02:32.4]} 20... Qb6 {[%clk 0:02:26.6]} 21.
b4 {[%clk 0:02:30]} 21... Rbc8 {[%clk 0:02:25.9]} 22. Rc1 {[%clk 0:02:28.6]}
22... Rfd8 {[%clk 0:02:25.2]} 23. Qf3 {[%clk 0:02:25.2]} 23... Rc7 {[%clk
0:02:25.2]} 24. Kh1 {[%clk 0:02:17.4]} 24... Rxd4 {[%clk 0:02:21.6]} 25. Qa8+
{[%clk 0:02:07.4]} 25... Bf8 {[%clk 0:02:21.7]} 26. Rcf1 {[%clk 0:02:00.1]}
26... Rdd7 {[%clk 0:02:11]} 27. Qe8 {[%clk 0:01:45.1]} 27... Kg7 {[%clk
0:02:07.5]} 28. h4 {[%clk 0:01:09.4]} 28... h5 {[%clk 0:02:04.1]} 29. g4 {[%clk
0:01:05.2]} 29... hxg4 {[%clk 0:01:59.3]} 30. h5 {[%clk 0:01:05]} 30... gxh5
{[%clk 0:01:56.9]} 31. Be4 {[%clk 0:01:04.8]} 31... Qe3 {[%clk 0:01:54]} 32. Bg2
{[%clk 0:00:40.7]} 32... Qxe5 {[%clk 0:01:48.1]} 33. Rf5 {[%clk 0:00:35.3]}
33... Qxf5 {[%clk 0:01:40.9]} 34. Rxf5 {[%clk 0:00:34.6]} 34... exf5 {[%clk
0:01:41.8]} 35. Qe5+ {[%clk 0:00:32.4]} 35... Kg6 {[%clk 0:01:40.3]} 36. Qxb5
{[%clk 0:00:23.7]} 36... Rd1+ {[%clk 0:01:36.9]} 37. Kh2 {[%clk 0:00:23.6]}
37... Bd6+ {[%clk 0:01:36.3]} 0-1

[Event "*** SCC Grand Prix: Titled Tuesday Blitz"]
[Site "Chess.com"]
[Date "2020.10.06"]
[Round "7"]
[White "GregShahade"]
[Black "bocah_sakit"]
[Result "0-1"]
[WhiteElo "2659"]
[BlackElo "2825"]
[TimeControl "180+1"]
[EndTime "11:18:02 PDT"]
[Termination "bocah_sakit won by resignation"]

1. e4 {[%clk 0:03:00.9]} 1... c5 {[%clk 0:02:59.8]} 2. Nf3 {[%clk 0:03:01.2]}
2... Nc6 {[%clk 0:02:59.9]} 3. d4 {[%clk 0:03:01.7]} 3... cxd4 {[%clk
0:03:00.8]} 4. Nxd4 {[%clk 0:03:02.3]} 4... g6 {[%clk 0:03:01.5]} 5. c4 {[%clk
0:03:02.1]} 5... Nf6 {[%clk 0:03:01.9]} 6. Nc3 {[%clk 0:03:02.1]} 6... d6 {[%clk
0:03:01.7]} 7. f3 {[%clk 0:02:58.6]} 7... Nxd4 {[%clk 0:03:00.5]} 8. Qxd4 {[%clk
0:02:59.5]} 8... Bg7 {[%clk 0:03:01.1]} 9. Be3 {[%clk 0:02:59.5]} 9... O-O
{[%clk 0:03:01.5]} 10. Qd2 {[%clk 0:03:00.2]} 10... a5 {[%clk 0:03:00.4]} 11.
Na4 {[%clk 0:02:59.3]} 11... Be6 {[%clk 0:02:59.8]} 12. Nb6 {[%clk 0:02:57.3]}
12... Rb8 {[%clk 0:03:00.2]} 13. Be2 {[%clk 0:02:51.1]} 13... Nd7 {[%clk
0:02:51.1]} 14. Nd5 {[%clk 0:02:51.1]} 14... Nc5 {[%clk 0:02:45.3]} 15. O-O
{[%clk 0:02:49]} 15... Bxd5 {[%clk 0:02:41.6]} 16. cxd5 {[%clk 0:02:47]} 16...
Qb6 {[%clk 0:02:41.9]} 17. Rab1 {[%clk 0:02:42.2]} 17... Qb4 {[%clk 0:02:38]}
18. Rfc1 {[%clk 0:02:23.8]} 18... Rfc8 {[%clk 0:02:01.9]} 19. Kf1 {[%clk
0:01:57.3]} 19... Ra8 {[%clk 0:01:50.3]} 20. b3 {[%clk 0:01:42.9]} 20... Rc7
{[%clk 0:01:18.4]} 21. Rc2 {[%clk 0:01:30.8]} 21... Qxd2 {[%clk 0:01:14.6]} 22.
Bxd2 {[%clk 0:01:27.8]} 22... Nxb3 {[%clk 0:00:56.9]} 23. Rbc1 {[%clk
0:00:14.1]} 23... Nxd2+ {[%clk 0:00:52.4]} 0-1